[Event "WYCC 2018 O16"]
[Site "Halkidiki"]
[Date "2018.10.26"]
[Round "7"]
[White "Davtyan, Artur"]
[Black "Petriashvili, Nikoloz"]
[Result "1/2-1/2"]
[ECO "D16"]
[WhiteElo "2374"]
[BlackElo "2343"]
[Annotator "NA"]
[PlyCount "64"]
[EventDate "2018.10.20"]
[EventType "swiss"]
[EventCountry "GRE"]
[SourceTitle "playchess.com"]
[Source "ChessBase"]
[SourceQuality "1"]
[TimeControl "40/5400+30:1800+30"]

1. d4 {[%emt 0:00:00]} d5 {[%emt 0:00:00]} 2. c4 {[%emt 0:01:19]} c6 {[%emt 0:00:30]} 3. Nf3 {[%emt 0:00:45]} Nf6 {[%emt 0:00:06]} 4. Nc3 {[%emt 0:00:03]} dxc4 {[%emt 0:00:05]} 5. a4 $11 {[%emt 0:00:00] LiveBook: 13649 Games} e6 {[%emt 0:00:00]} 6. e3 {[%emt 0:00:00]} c5 {[%emt 0:00:19]} 7. Bxc4 {[%emt 0:00:00]} Nc6 {[%emt 0:00:10]} 8. O-O {[%emt 0:00:00]} cxd4 {[%emt 0:00:30]} 9. Nxd4 {[%emt 0:00:00]} Bd7 {[%emt 0:01:00]} 10. Qe2 {[%emt 0:07:22]} Bc5 {[%emt 0:21:47]} 11. Rd1 {[%emt 0:01:57]} Qc7 {[%emt 0:05:54]} 12. Bd2 {[%emt 0:26:36]} O-O {[%emt 0:09:20]} 13. Ncb5 {[%emt 0:03:25]} Qb8 {[%emt 0:06:24]} 14. Bc3 {[%emt 0:03:36]} Ne5 {[%emt 0:04:05]} 15. Nf3 {[%emt 0:30:52]} Nxf3+ {[%emt 0:06:19]} 16. Qxf3 {[%emt 0:02:11]} Bc6 {[%emt 0:03:44]} 17. Qe2 {[%emt 0:00:01]} Ne4 {[%emt 0:01:45]} 18. Be1 {[%emt 0:00:47]} Nd6 {[%emt 0:06:14]} 19. b4 {[%emt 0:00:59]} Bxb5 {[%emt 0:01:37]} 20. Bxb5 {[%emt 0:04:07]} Nxb5 {[%emt 0:01:28]} 21. bxc5 {[%emt 0:00:05]} Nc7 {[%emt 0:00:02]} 22. Bc3 {[%emt 0:06:22]} Nd5 {[%emt 0:00:55]} 23. Bd4 {[%emt 0:00:01]} Qc7 {[%emt 0:01:36]} 24. e4 {[%emt 0:00:01]} Ne7 {[%emt 0:02:01]} 25. Qb2 {[%emt 0:00:36]} f6 {[%emt 0:00:06]} 26. Qb3 {[%emt 0:06:54]} Kf7 {[%emt 0:00:04]} 27. Be3 {[%emt 0:03:52]} Rfd8 {[%emt 0:00:53]} 28. f3 {[%emt 0:00:22]} Rxd1+ {[%emt 0:03:31]} 29. Rxd1 {[%emt 0:00:01]} Rd8 {[%emt 0:00:05]} 30. Rxd8 {[%emt 0:00:56]} Qxd8 {[%emt 0:00:05]} 31. Qxb7 {[%emt 0:01:48]} Qd1+ {[%emt 0:00:21]} 32. Kf2 {[%emt 0:00:00]} Qxa4 {[%emt 0:00:05]} 1/2-1/2

[Event "WYCC 2018 O16"]
[Site "Halkidiki"]
[Date "2018.10.26"]
[Round "7"]
[White "Shubin, Kirill"]
[Black "Travadon, Loic"]
[Result "1-0"]
[ECO "B89"]
[WhiteElo "2369"]
[BlackElo "2293"]
[Annotator "NA"]
[PlyCount "63"]
[EventDate "2018.10.20"]
[EventType "swiss"]
[EventCountry "GRE"]
[SourceTitle "playchess.com"]
[Source "ChessBase"]
[SourceQuality "1"]
[TimeControl "40/5400+30:1800+30"]

1. e4 {[%emt 0:00:00]} c5 {[%emt 0:02:00]} 2. Nf3 {[%emt 0:00:00]} d6 {[%emt 0:00:07]} 3. d4 {[%emt 0:00:00]} Nf6 {[%emt 0:00:05]} 4. Nc3 {[%emt 0:00:00]} cxd4 {[%emt 0:00:04]} 5. Nxd4 {[%emt 0:00:00]} Nc6 {[%emt 0:00:05]} 6. Bc4 {[%emt 0:00:00]} e6 {[%emt 0:00:03]} 7. Be3 {[%emt 0:00:02]} a6 {[%emt 0:00:03]} 8. Qe2 {[%emt 0:00:05]} Qc7 {[%emt 0:00:03]} 9. O-O-O {[%emt 0:01:47]} Bd7 {[%emt 0:00:03]} 10. Rhe1 {[%emt 0:09:57]} b5 {[%emt 0:00:52]} 11. Bb3 {[%emt 0:01:04]} Na5 {[%emt 0:00:11]} 12. g4 {[%emt 0:14:48]} b4 {[%emt 0:05:01]} 13. Na4 {[%emt 0:00:06]} Nxb3+ {[%emt 0:01:05]} 14. axb3 {[%emt 0:00:03]} Qa5 {[%emt 0:05:48]} 15. Kb1 {[%emt 0:15:40]} Bxa4 {[%emt 0:00:06]} 16. bxa4 {[%emt 0:00:06]} Qxa4 {[%emt 0:03:33]} 17. Bc1 {[%emt 0:10:25]} Rc8 {[%emt 0:15:31]} 18. f4 {[%emt 0:02:21]} Be7 {[%emt 0:04:56]} 19. g5 {[%emt 0:02:00]} Nd7 {[%emt 0:00:10]} 20. b3 {[%emt 0:07:17]} Qa5 {[%emt 0:00:04]} 21. f5 {[%emt 0:00:18]} e5 {[%emt 0:00:38]} 22. f6 {[%emt 0:01:02]} exd4 {[%emt 0:02:18]} 23. fxe7 {[%emt 0:01:16]} Kxe7 {[%emt 0:10:45]} 24. Rxd4 {[%emt 0:01:14]} Rc6 {[%emt 0:06:03]} 25. Rd5 {[%emt 0:01:54]} Qc7 {[%emt 0:00:29]} 26. Bf4 {[%emt 0:01:29]} Ne5 {[%emt 0:04:30]} 27. Red1 {[%emt 0:01:24]} Rc8 {[%emt 0:00:17]} 28. Bxe5 {[%emt 0:00:02]} dxe5 {[%emt 0:00:00]} 29. Qd3 {[%emt 0:00:11]} Ke8 {[%emt 0:01:47]} 30. Rd7 {[%emt 0:00:20]} Qa5 {[%emt 0:00:29]} 31. Qf3 {[%emt 0:00:10]} f6 {[%emt 0:00:55]} 32. Qh5+ {[%emt 0:00:03]} 1-0

[Event "WYCC 2018 O16"]
[Site "Halkidiki"]
[Date "2018.10.26"]
[Round "7"]
[White "Abdisalimov, Abdimalik"]
[Black "Sargsyan, Tigran R."]
[Result "1/2-1/2"]
[ECO "B10"]
[WhiteElo "2368"]
[BlackElo "2218"]
[Annotator "NA"]
[PlyCount "92"]
[EventDate "2018.10.20"]
[EventType "swiss"]
[EventCountry "GRE"]
[SourceTitle "playchess.com"]
[Source "ChessBase"]
[SourceQuality "1"]
[TimeControl "40/5400+30:1800+30"]

1. c4 {[%emt 0:00:00]} c6 {[%emt 0:00:00]} 2. e4 {[%emt 0:00:06]} d5 {[%emt 0:01:52]} 3. exd5 {[%emt 0:00:08]} cxd5 {[%emt 0:01:40]} 4. cxd5 {[%emt 0:00:07]} Nf6 {[%emt 0:00:34]} 5. Qa4+ {[%emt 0:00:12]} Nbd7 {[%emt 0:00:55]} 6. Nc3 {[%emt 0:00:06]} g6 {[%emt 0:00:22]} 7. Bc4 {[%emt 0:00:06]} Bg7 {[%emt 0:00:11]} 8. d3 {[%emt 0:00:16]} O-O {[%emt 0:00:09]} 9. Nf3 {[%emt 0:00:24]} a6 {[%emt 0:00:48]} 10. Qa3 {[%emt 0:00:11]} b6 {[%emt 0:00:48]} 11. O-O {[%emt 0:00:32]} Bb7 {[%emt 0:00:10]} 12. Re1 {[%emt 0:01:52]} Re8 {[%emt 0:04:38]} 13. Ng5 {[%emt 0:08:27]} b5 {[%emt 0:05:07]} 14. Bb3 {[%emt 0:00:07]} Rc8 {[%emt 0:19:46]} 15. d6 {[%emt 0:02:12]} e6 {[%emt 0:03:18]} 16. Nge4 {[%emt 0:02:39]} Nd5 {[%emt 0:10:48]} 17. Bg5 {[%emt 0:09:34]} Qb6 {[%emt 0:01:58]} 18. Nxd5 {[%emt 0:09:16]} exd5 {[%emt 0:00:48]} 19. Be3 {[%emt 0:05:19]} Bd4 {[%emt 0:07:08]} 20. Bxd4 {[%emt 0:00:41]} Qxd4 {[%emt 0:00:12]} 21. Ng5 {[%emt 0:04:19]} Rxe1+ {[%emt 0:07:51]} 22. Rxe1 {[%emt 0:01:28]} Qf4 {[%emt 0:01:00]} 23. Nf3 {[%emt 0:05:20]} d4 {[%emt 0:07:45]} 24. Bd1 {[%emt 0:02:24]} Bxf3 {[%emt 0:11:45]} 25. Bxf3 {[%emt 0:06:33]} Qd2 {[%emt 0:00:06]} 26. Rf1 {[%emt 0:01:07]} Rc1 {[%emt 0:07:10]} 27. g3 {[%emt 0:01:33]} Ne5 {[%emt 0:02:17]} 28. Rxc1 {[%emt 0:06:41]} Qxc1+ {[%emt 0:00:02]} 29. Kg2 {[%emt 0:00:01]} Qc2 {[%emt 0:01:14]} 30. d7 {[%emt 0:06:55]} Nxd7 {[%emt 0:00:11]} 31. Qe7 {[%emt 0:00:56]} Nf8 {[%emt 0:02:21]} 32. Bd5 {[%emt 0:01:23]} Ne6 {[%emt 0:00:16]} 33. Bxe6 {[%emt 0:00:07]} Qc6+ {[%emt 0:00:05]} 34. Kh3 {[%emt 0:00:40]} fxe6 {[%emt 0:01:12]} 35. Qd8+ {[%emt 0:00:11]} Kf7 {[%emt 0:00:07]} 36. Qxd4 {[%emt 0:00:15]} Qc8 {[%emt 0:01:51]} 37. g4 {[%emt 0:06:39]} Qc6 {[%emt 0:00:38]} 38. Kh4 {[%emt 0:01:32]} h6 {[%emt 0:00:52]} 39. Qf4+ {[%emt 0:09:59]} Kg7 {[%emt 0:00:10]} 40. Qe5+ {[%emt 0:00:00]} Kf7 {[%emt 0:00:00]} 41. Kg3 {[%emt 0:13:10]} Qh1 {[%emt 0:03:33]} 42. Qe2 {[%emt 0:03:54]} Qg1+ {[%emt 0:02:28]} 43. Kh3 {[%emt 0:00:02]} Qh1 {[%emt 0:03:03]} 44. f4 {[%emt 0:01:09]} Qd5 {[%emt 0:00:18]} 45. a3 {[%emt 0:00:45]} Qd4 {[%emt 0:00:16]} 46. Kg3 {[%emt 0:01:31]} a5 {[%emt 0:03:00]} 1/2-1/2

[Event "WYCC 2018 O16"]
[Site "Halkidiki"]
[Date "2018.10.26"]
[Round "7"]
[White "Kalavannan, Koby"]
[Black "Jakab, Bela"]
[Result "1/2-1/2"]
[ECO "D02"]
[WhiteElo "2365"]
[BlackElo "2285"]
[Annotator "NA"]
[PlyCount "193"]
[EventDate "2018.10.20"]
[EventType "swiss"]
[EventCountry "GRE"]
[SourceTitle "playchess.com"]
[Source "ChessBase"]
[SourceQuality "1"]
[TimeControl "40/5400+30:1800+30"]

1. d4 {[%emt 0:00:00]} d5 {[%emt 0:00:00]} 2. Nf3 {[%emt 0:00:00]} Nf6 {[%emt 0:00:00]} 3. c4 {[%emt 0:00:00]} c6 {[%emt 0:00:00]} 4. Qb3 {[%emt 0:00:00]} dxc4 {[%emt 0:00:01]} 5. Qxc4 {[%emt 0:00:01]} Bg4 {[%emt 0:00:57]} 6. Nbd2 {[%emt 0:00:08]} Nbd7 {[%emt 0:01:31]} 7. g3 {[%emt 0:00:10]} e6 {[%emt 0:04:20]} 8. Bg2 {[%emt 0:00:06]} Rc8 {[%emt 0:05:33]} 9. Qb3 {[%emt 0:02:27]} Qb6 {[%emt 0:00:52]} 10. Nc4 {[%emt 0:00:36]} Qxb3 {[%emt 0:17:09]} 11. axb3 {[%emt 0:00:02]} a6 {[%emt 0:00:10]} 12. Bf4 {[%emt 0:06:38]} Bb4+ {[%emt 0:04:52]} 13. Nfd2 {[%emt 0:06:04]} O-O $11 {[%emt 0:01:18]} 14. Na5 {[%emt 0:06:04]} Bxa5 {[%emt 0:11:16]} 15. Rxa5 {[%emt 0:00:02]} Rfd8 {[%emt 0:00:19]} 16. Nc4 {[%emt 0:13:28]} Nd5 {[%emt 0:05:00]} 17. Bg5 {[%emt 0:05:47]} f6 {[%emt 0:01:58]} 18. Bd2 {[%emt 0:00:05]} b5 {[%emt 0:19:53]} 19. Nd6 {[%emt 0:15:09]} Ra8 {[%emt 0:00:22]} 20. h3 {[%emt 0:08:02]} Bh5 {[%emt 0:01:18]} 21. e4 {[%emt 0:00:27]} Nc7 {[%emt 0:00:43]} 22. Be3 {[%emt 0:01:23]} e5 {[%emt 0:04:48]} 23. d5 {[%emt 0:01:15]} Nb8 {[%emt 0:11:11]} 24. Nf5 {[%emt 0:10:12]} cxd5 {[%emt 0:02:28]} 25. exd5 {[%emt 0:00:12]} Nc6 {[%emt 0:01:03]} 26. Bb6 {[%emt 0:06:42]} Nxa5 {[%emt 0:01:58]} 27. Bxa5 {[%emt 0:01:30]} Ne6 {[%emt 0:02:41]} 28. O-O {[%emt 0:05:38]} Nd4 {[%emt 0:00:18]} 29. Nxd4 {[%emt 0:01:56]} exd4 {[%emt 0:00:04]} 30. g4 {[%emt 0:00:05]} Bf7 {[%emt 0:00:12]} 31. Bxd8 {[%emt 0:01:52]} Rxd8 {[%emt 0:00:01]} 32. Rd1 {[%emt 0:00:01]} Kf8 {[%emt 0:00:17]} 33. Rxd4 {[%emt 0:00:29]} Ke7 {[%emt 0:00:07]} 34. Rd1 {[%emt 0:02:24]} Kd6 {[%emt 0:00:48]} 35. Rc1 {[%emt 0:03:09]} Be8 {[%emt 0:02:07]} 36. b4 {[%emt 0:00:49]} Ra8 {[%emt 0:00:30]} 37. Ra1 {[%emt 0:01:48]} Ra7 {[%emt 0:00:15]} 38. f4 {[%emt 0:00:34]} Bd7 {[%emt 0:00:36]} 39. Kf2 {[%emt 0:00:43]} Bc8 {[%emt 0:00:10]} 40. Rc1 {[%emt 0:00:00]} Bd7 {[%emt 0:00:00]} 41. Ke3 {[%emt 0:05:19]} a5 {[%emt 0:00:50]} 42. Ra1 {[%emt 0:02:53]} a4 {[%emt 0:00:27]} 43. Be4 {[%emt 0:04:51]} Rc7 {[%emt 0:02:50]} 44. Bd3 {[%emt 0:01:17]} h6 {[%emt 0:03:16]} 45. Kd4 {[%emt 0:01:41]} Rc8 {[%emt 0:05:40]} 46. Rg1 {[%emt 0:05:40]} Rh8 {[%emt 0:04:50]} 47. Rc1 {[%emt 0:03:37]} h5 {[%emt 0:01:30]} 48. Rc5 {[%emt 0:04:38]} hxg4 {[%emt 0:00:28]} 49. hxg4 {[%emt 0:00:02]} Rh4 {[%emt 0:01:34]} 50. Bxb5 {[%emt 0:00:21]} Rxg4 {[%emt 0:00:11]} 51. Bxd7 {[%emt 0:00:18]} Kxd7 {[%emt 0:00:06]} 52. Ra5 {[%emt 0:00:13]} Rxf4+ {[%emt 0:03:09]} 53. Kc5 {[%emt 0:00:02]} g5 {[%emt 0:00:48]} 54. Ra7+ {[%emt 0:00:26]} Kc8 {[%emt 0:00:57]} 55. b5 {[%emt 0:01:26]} g4 {[%emt 0:00:41]} 56. Rg7 {[%emt 0:00:48]} f5 {[%emt 0:00:29]} 57. Kb6 {[%emt 0:01:37]} Rd4 {[%emt 0:01:15]} 58. Ka6 {[%emt 0:01:25]} a3 {[%emt 0:02:55]} 59. bxa3 {[%emt 0:00:07]} Ra4+ {[%emt 0:00:06]} 60. Kb6 {[%emt 0:00:01]} Rxa3 {[%emt 0:00:10]} 61. Rc7+ {[%emt 0:02:04]} Kd8 {[%emt 0:00:23]} 62. Rf7 {[%emt 0:00:04]} Rf3 {[%emt 0:01:37]} 63. Kc6 {[%emt 0:01:44]} g3 {[%emt 0:01:33]} 64. b6 {[%emt 0:00:35]} Ke8 {[%emt 0:03:15]} 65. Rxf5 {[%emt 0:00:54]} Rc3+ {[%emt 0:00:36]} 66. Kd6 {[%emt 0:01:32]} Rb3 {[%emt 0:00:12]} 67. Kc6 {[%emt 0:00:01]} Rc3+ {[%emt 0:00:06]} 68. Kb7 {[%emt 0:00:16]} g2 {[%emt 0:01:39]} 69. Rg5 {[%emt 0:00:03]} Rc2 {[%emt 0:00:06]} 70. Rg7 {[%emt 0:01:46]} Kf8 {[%emt 0:00:31]} 71. Rg5 {[%emt 0:01:39]} Ke7 {[%emt 0:00:03]} 72. Ka7 {[%emt 0:00:25]} Ra2+ {[%emt 0:00:09]} 73. Kb8 {[%emt 0:00:04]} Kd6 {[%emt 0:00:57]} 74. b7 {[%emt 0:00:21]} Rc2 {[%emt 0:00:07]} 75. Ka7 {[%emt 0:01:47]} Ra2+ {[%emt 0:00:05]} 76. Kb8 {[%emt 0:00:54]} Rc2 {[%emt 0:00:04]} 77. Ka7 {[%emt 0:00:53]} Ra2+ {[%emt 0:00:05]} 78. Kb6 {[%emt 0:00:01]} Rb2+ {[%emt 0:00:06]} 79. Ka6 {[%emt 0:00:25]} Ra2+ {[%emt 0:00:10]} 80. Kb5 {[%emt 0:00:28]} Rb2+ {[%emt 0:00:05]} 81. Kc4 {[%emt 0:00:17]} Rxb7 {[%emt 0:00:47]} 82. Rxg2 {[%emt 0:00:14]} Rc7+ {[%emt 0:00:33]} 83. Kd4 {[%emt 0:00:01]} Rc1 {[%emt 0:00:10]} 84. Rg6+ {[%emt 0:00:10]} Kd7 {[%emt 0:00:16]} 85. Rg7+ {[%emt 0:00:21]} Kd6 {[%emt 0:00:12]} 86. Rg6+ {[%emt 0:00:01]} Kd7 {[%emt 0:00:06]} 87. Rg4 {[%emt 0:01:16]} Rd1+ {[%emt 0:00:19]} 88. Ke5 {[%emt 0:00:05]} Re1+ {[%emt 0:00:07]} 89. Re4 {[%emt 0:00:07]} Rxe4+ {[%emt 0:00:11]} 90. Kxe4 {[%emt 0:00:01]} Kd6 {[%emt 0:00:09]} 91. Kd4 {[%emt 0:00:00]} Kd7 {[%emt 0:00:14]} 92. Ke5 {[%emt 0:00:04]} Ke7 {[%emt 0:00:04]} 93. d6+ {[%emt 0:00:06]} Kd7 {[%emt 0:00:05]} 94. Kd5 {[%emt 0:00:04]} Kd8 {[%emt 0:00:15]} 95. Ke6 {[%emt 0:00:02]} Ke8 {[%emt 0:00:05]} 96. d7+ {[%emt 0:00:01]} Kd8 {[%emt 0:00:05]} 97. Kd6 {[%emt 0:00:01]} 1/2-1/2

[Event "WYCC 2018 O16"]
[Site "Halkidiki"]
[Date "2018.10.26"]
[Round "7"]
[White "Mitsis, Georgios"]
[Black "Petkov, Matey"]
[Result "1/2-1/2"]
[ECO "A41"]
[WhiteElo "2350"]
[BlackElo "2164"]
[Annotator "NA"]
[PlyCount "174"]
[EventDate "2018.10.20"]
[EventType "swiss"]
[EventCountry "GRE"]
[SourceTitle "playchess.com"]
[Source "ChessBase"]
[SourceQuality "1"]
[TimeControl "40/5400+30:1800+30"]

1. d4 {[%emt 0:00:00]} d6 {[%emt 0:00:00]} 2. Nf3 {[%emt 0:00:00]} Nf6 {[%emt 0:00:00]} 3. c4 {[%emt 0:00:00]} g6 {[%emt 0:00:53]} 4. Nc3 {[%emt 0:00:00]} Bf5 {[%emt 0:00:21]} 5. d5 {[%emt 0:00:53]} c5 {[%emt 0:03:06]} 6. Nd2 {[%emt 0:01:42]} Bh6 {[%emt 0:09:20]} 7. g3 {[%emt 0:11:51]} Na6 {[%emt 0:05:45]} 8. Bg2 {[%emt 0:01:30]} O-O {[%emt 0:11:57]} 9. O-O {[%emt 0:00:11]} Nc7 {[%emt 0:00:11]} 10. e4 {[%emt 0:06:51]} Bd7 {[%emt 0:00:46]} 11. f4 {[%emt 0:03:41]} b5 {[%emt 0:16:57]} 12. Qe2 {[%emt 0:06:06]} Rb8 {[%emt 0:03:34]} 13. e5 {[%emt 0:01:31]} Nfe8 {[%emt 0:01:11]} 14. b3 {[%emt 0:02:33]} e6 {[%emt 0:03:02]} 15. Bb2 {[%emt 0:06:02]} b4 {[%emt 0:07:01]} 16. Nce4 {[%emt 0:07:44]} exd5 {[%emt 0:01:10]} 17. Nxd6 {[%emt 0:11:51]} d4 {[%emt 0:02:59]} 18. N2e4 {[%emt 0:01:19]} Nxd6 {[%emt 0:02:00]} 19. Nxd6 {[%emt 0:00:35]} f6 {[%emt 0:10:33]} 20. Ne4 {[%emt 0:01:50]} fxe5 {[%emt 0:00:29]} 21. Nxc5 {[%emt 0:01:22]} exf4 {[%emt 0:02:26]} 22. Bxd4 {[%emt 0:00:05]} Re8 {[%emt 0:02:39]} 23. Qf2 {[%emt 0:00:33]} Rf8 {[%emt 0:03:43]} 24. Bb2 {[%emt 0:02:25]} Bg4 {[%emt 0:00:50]} 25. Ne4 {[%emt 0:06:20]} f3 {[%emt 0:01:36]} 26. Rfd1 {[%emt 0:00:12]} Qe7 {[%emt 0:03:12]} 27. Qd4 {[%emt 0:09:19]} Bg7 {[%emt 0:00:36]} 28. Qxg7+ {[%emt 0:00:05]} Qxg7 {[%emt 0:00:03]} 29. Bxg7 {[%emt 0:00:07]} Kxg7 {[%emt 0:00:13]} 30. Nf2 {[%emt 0:00:09]} Be6 {[%emt 0:01:24]} 31. Bf1 {[%emt 0:01:40]} Rbd8 {[%emt 0:00:58]} 32. Rxd8 {[%emt 0:02:24]} Rxd8 {[%emt 0:00:01]} 33. a3 {[%emt 0:00:06]} bxa3 {[%emt 0:01:45]} 34. Rxa3 {[%emt 0:00:04]} a6 {[%emt 0:00:05]} 35. b4 {[%emt 0:01:55]} Rb8 {[%emt 0:00:28]} 36. b5 {[%emt 0:00:04]} Bc8 {[%emt 0:02:39]} 37. Ne4 {[%emt 0:03:50]} axb5 {[%emt 0:01:42]} 38. cxb5 {[%emt 0:00:06]} f2+ {[%emt 0:01:24]} 39. Nxf2 {[%emt 0:01:22]} Nxb5 {[%emt 0:01:58]} 40. Rb3 {[%emt 0:00:00]} Bd7 {[%emt 0:00:00]} 41. Ne4 {[%emt 0:00:09]} h5 {[%emt 0:06:13]} 42. Nd6 {[%emt 0:00:30]} Nxd6 {[%emt 0:00:15]} 43. Rxb8 {[%emt 0:00:05]} Bf5 {[%emt 0:00:11]} 44. Rb6 {[%emt 0:00:18]} Nf7 {[%emt 0:00:12]} 45. Kf2 {[%emt 0:01:06]} Ne5 {[%emt 0:00:36]} 46. Be2 {[%emt 0:00:03]} Nd7 {[%emt 0:06:35]} 47. Ra6 {[%emt 0:00:37]} Nf6 {[%emt 0:00:13]} 48. Ke3 {[%emt 0:00:22]} g5 {[%emt 0:01:07]} 49. Kd4 {[%emt 0:00:12]} Ng4 {[%emt 0:01:01]} 50. Bxg4 {[%emt 0:00:28]} Bxg4 {[%emt 0:00:04]} 51. Ke5 {[%emt 0:00:14]} Bh3 {[%emt 0:00:13]} 52. Rf6 {[%emt 0:01:05]} Bg4 {[%emt 0:00:19]} 53. Rb6 {[%emt 0:00:38]} Bh3 {[%emt 0:00:06]} 54. Kd6 {[%emt 0:00:24]} Kf6 {[%emt 0:01:01]} 55. Rb8 {[%emt 0:00:04]} Kf5 {[%emt 0:02:38]} 56. Rg8 {[%emt 0:03:00]} h4 {[%emt 0:03:07]} 57. gxh4 {[%emt 0:00:32]} gxh4 {[%emt 0:00:01]} 58. Kd5 {[%emt 0:02:04]} Kf4 {[%emt 0:00:15]} 59. Rh8 {[%emt 0:06:18]} Bg2+ {[%emt 0:00:18]} 60. Kd4 {[%emt 0:00:05]} Kg4 {[%emt 0:00:04]} 61. Ke3 {[%emt 0:00:23]} Kh3 {[%emt 0:00:07]} 62. Kf2 {[%emt 0:00:15]} Bb7 {[%emt 0:00:07]} 63. Kg1 {[%emt 0:00:28]} Bc6 {[%emt 0:00:13]} 64. Rc8 {[%emt 0:00:08]} Bd5 {[%emt 0:00:13]} 65. Rc5 {[%emt 0:06:14]} Be6 {[%emt 0:00:53]} 66. Rc3+ {[%emt 0:00:11]} Kg4 {[%emt 0:00:05]} 67. Kf2 {[%emt 0:00:11]} Kf4 {[%emt 0:01:28]} 68. Ra3 {[%emt 0:00:56]} Kg4 {[%emt 0:00:30]} 69. Ra6 {[%emt 0:10:56]} Bd5 {[%emt 0:01:33]} 70. Rd6 {[%emt 0:00:38]} Bb7 {[%emt 0:00:26]} 71. Rd3 {[%emt 0:00:24]} Bc8 {[%emt 0:00:34]} 72. h3+ {[%emt 0:00:36]} Kf4 {[%emt 0:00:18]} 73. Rd4+ {[%emt 0:00:09]} Kg5 {[%emt 0:00:10]} 74. Rd5+ {[%emt 0:00:11]} Kf4 {[%emt 0:00:48]} 75. Rh5 {[%emt 0:00:09]} Bxh3 {[%emt 0:00:08]} 76. Rxh4+ {[%emt 0:00:04]} Bg4 {[%emt 0:00:05]} 77. Kg2 {[%emt 0:00:04]} Kg5 {[%emt 0:00:06]} 78. Kg3 {[%emt 0:00:03]} Bd7 {[%emt 0:01:03]} 79. Rc4 {[%emt 0:00:09]} Kf5 {[%emt 0:00:21]} 80. Kf3 {[%emt 0:00:16]} Ke5 {[%emt 0:00:06]} 81. Ke3 {[%emt 0:00:16]} Be6 {[%emt 0:01:50]} 82. Rc5+ {[%emt 0:00:04]} Kf6 {[%emt 0:00:03]} 83. Kf4 {[%emt 0:00:08]} Ba2 {[%emt 0:00:12]} 84. Rc6+ {[%emt 0:00:05]} Kg7 {[%emt 0:00:06]} 85. Kg5 {[%emt 0:00:06]} Bd5 {[%emt 0:00:18]} 86. Rc7+ {[%emt 0:00:05]} Kh8 {[%emt 0:00:11]} 87. Kf6 {[%emt 0:00:30]} Be4 {[%emt 0:00:56]} 1/2-1/2

[Event "WYCC 2018 O16"]
[Site "Halkidiki"]
[Date "2018.10.26"]
[Round "7"]
[White "Koustav Chatterjee"]
[Black "Kamer, Kayra"]
[Result "1-0"]
[ECO "E73"]
[WhiteElo "2344"]
[BlackElo "2290"]
[Annotator "NA"]
[PlyCount "85"]
[EventDate "2018.10.20"]
[EventType "swiss"]
[EventCountry "GRE"]
[SourceTitle "playchess.com"]
[Source "ChessBase"]
[SourceQuality "1"]
[TimeControl "40/5400+30:1800+30"]

1. d4 {[%emt 0:05:37]} Nf6 {[%emt 0:00:00]} 2. c4 {[%emt 0:00:05]} g6 {[%emt 0:00:00]} 3. Nc3 {[%emt 0:00:04]} Bg7 {[%emt 0:00:00]} 4. e4 {[%emt 0:00:05]} d6 {[%emt 0:00:00]} 5. Be2 {[%emt 0:00:05]} O-O {[%emt 0:00:00]} 6. Be3 {[%emt 0:00:07]} c5 {[%emt 0:00:07]} 7. d5 {[%emt 0:00:05]} e6 {[%emt 0:00:27]} 8. Nf3 {[%emt 0:00:07]} exd5 {[%emt 0:00:07]} 9. cxd5 {[%emt 0:00:04]} Re8 {[%emt 0:04:14]} 10. Nd2 {[%emt 0:00:16]} Na6 {[%emt 0:00:33]} 11. O-O {[%emt 0:01:51]} Nc7 {[%emt 0:00:42]} 12. a4 {[%emt 0:01:14]} b6 {[%emt 0:02:58]} 13. Bg5 {[%emt 0:08:11]} a6 {[%emt 0:08:00]} 14. f4 {[%emt 0:07:40]} Qd7 {[%emt 0:08:53]} 15. Nc4 {[%emt 0:19:28]} Nxe4 {[%emt 0:03:46]} 16. Nxb6 {[%emt 0:01:34]} Qf5 {[%emt 0:01:44]} 17. Nxe4 {[%emt 0:00:48]} Qxe4 {[%emt 0:01:49]} 18. Nxa8 {[%emt 0:00:23]} Nxa8 {[%emt 0:06:32]} 19. Bf3 {[%emt 0:03:13]} Qd4+ {[%emt 0:02:15]} 20. Kh1 {[%emt 0:06:39]} Bf5 {[%emt 0:07:18]} 21. Re1 {[%emt 0:04:29]} Rxe1+ {[%emt 0:03:04]} 22. Qxe1 {[%emt 0:00:19]} h6 {[%emt 0:00:06]} 23. Qe8+ {[%emt 0:01:41]} Kh7 {[%emt 0:00:05]} 24. Be7 {[%emt 0:00:17]} Qxb2 {[%emt 0:02:45]} 25. Rg1 {[%emt 0:02:29]} Nb6 {[%emt 0:00:41]} 26. Bxd6 {[%emt 0:02:57]} Nd7 {[%emt 0:00:53]} 27. Qe2 {[%emt 0:05:24]} Qd4 {[%emt 0:11:40]} 28. Rd1 {[%emt 0:10:47]} Qxa4 {[%emt 0:01:56]} 29. Be5 {[%emt 0:00:06]} Nxe5 {[%emt 0:04:04]} 30. fxe5 {[%emt 0:00:06]} c4 {[%emt 0:00:23]} 31. e6 {[%emt 0:03:08]} fxe6 {[%emt 0:06:44]} 32. dxe6 {[%emt 0:01:27]} Qe8 {[%emt 0:12:41]} 33. e7 {[%emt 0:03:51]} Bf6 {[%emt 0:02:31]} 34. Re1 {[%emt 0:00:40]} Bd7 {[%emt 0:00:20]} 35. Qxc4 {[%emt 0:02:18]} Bb5 {[%emt 0:01:29]} 36. Qe6 {[%emt 0:01:13]} Kg7 {[%emt 0:00:02]} 37. Bd5 {[%emt 0:00:26]} a5 {[%emt 0:01:11]} 38. Ba2 {[%emt 0:01:00]} a4 {[%emt 0:01:05]} 39. Re3 {[%emt 0:02:46]} h5 {[%emt 0:02:03]} 40. Rf3 {[%emt 0:00:00]} Qc6 {[%emt 0:00:00]} 41. e8=N+ {[%emt 0:00:32]} Kh6 {[%emt 0:03:45]} 42. Qxc6 {[%emt 0:00:08]} Bxc6 {[%emt 0:00:07]} 43. Rxf6 {[%emt 0:00:03]} 1-0

[Event "WYCC 2018 O16"]
[Site "Halkidiki"]
[Date "2018.10.26"]
[Round "7"]
[White "Morgunov, Daniel"]
[Black "Peng, Hongchi"]
[Result "0-1"]
[ECO "B44"]
[WhiteElo "2328"]
[BlackElo "2273"]
[Annotator "NA"]
[PlyCount "68"]
[EventDate "2018.10.20"]
[EventType "swiss"]
[EventCountry "GRE"]
[SourceTitle "playchess.com"]
[Source "ChessBase"]
[SourceQuality "1"]
[TimeControl "40/5400+30:1800+30"]

1. e4 {[%emt 0:00:00]} c5 {[%emt 0:00:00]} 2. Nf3 {[%emt 0:00:00]} e6 {[%emt 0:00:00]} 3. d4 {[%emt 0:00:00]} cxd4 {[%emt 0:00:00]} 4. Nxd4 {[%emt 0:00:00]} Nc6 {[%emt 0:00:00]} 5. Nb5 {[%emt 0:00:00]} d6 {[%emt 0:00:00]} 6. c4 {[%emt 0:00:00]} a6 {[%emt 0:00:14]} 7. N5a3 {[%emt 0:00:27]} Nf6 {[%emt 0:00:14]} 8. Nc3 {[%emt 0:00:04]} Be7 {[%emt 0:00:35]} 9. Be2 {[%emt 0:01:12]} O-O {[%emt 0:00:09]} 10. Be3 {[%emt 0:00:16]} Bd7 {[%emt 0:00:08]} 11. O-O {[%emt 0:00:25]} Ne5 {[%emt 0:00:35]} 12. f4 {[%emt 0:20:13]} Ng6 {[%emt 0:00:04]} 13. Qe1 {[%emt 0:01:17]} Bc6 {[%emt 0:03:20]} 14. Bf3 {[%emt 0:00:21]} Nd7 {[%emt 0:08:24]} 15. Rd1 {[%emt 0:09:57]} Qb8 $16 {[%emt 0:04:45]} 16. Nc2 {[%emt 0:03:48]} Nc5 {[%emt 0:11:19]} 17. Nd4 {[%emt 0:04:59]} Bd7 {[%emt 0:04:39]} 18. Nf5 {[%emt 0:13:14]} exf5 {[%emt 0:17:13]} 19. Bxc5 {[%emt 0:00:09]} Re8 {[%emt 0:11:17]} 20. Bd4 {[%emt 0:10:16]} Nxf4 {[%emt 0:03:56]} 21. exf5 {[%emt 0:20:30]} Bxf5 {[%emt 0:01:23]} 22. Be4 {[%emt 0:00:42]} Bxe4 {[%emt 0:11:48]} 23. Qxe4 {[%emt 0:00:06]} Ne6 {[%emt 0:01:32]} 24. Nd5 {[%emt 0:03:14]} Bg5 {[%emt 0:05:31]} 25. Qf5 {[%emt 0:01:42]} Nxd4 {[%emt 0:02:13]} 26. Qxf7+ {[%emt 0:00:43]} Kh8 {[%emt 0:00:02]} 27. Rxd4 {[%emt 0:00:08]} Qa7 {[%emt 0:01:10]} 28. Qf2 {[%emt 0:02:15]} Be3 {[%emt 0:00:32]} 29. Nxe3 {[%emt 0:02:12]} Qxd4 {[%emt 0:00:02]} 30. Nf5 {[%emt 0:04:57]} Qxf2+ {[%emt 0:01:14]} 31. Kxf2 {[%emt 0:00:05]} Re6 {[%emt 0:01:08]} 32. Kf3 {[%emt 0:02:03]} Rf8 {[%emt 0:00:40]} 33. Kg3 {[%emt 0:00:36]} Ref6 {[%emt 0:00:07]} 34. Kg4 {[%emt 0:00:34]} g6 {[%emt 0:00:11]} 0-1